bitfinex/quotes_ETHUSD_20230702
["timestamp","ask_amount","ask_price","bid_price","bid_amount"]
[1688257141199,5.19941,1923.3,1922.8,1.895]
[1688257141522,5.19941,1923.3,1922.8,7.0956]
[1688257141721,12.99851,1923.3,1922.7,1.583659]
[1688257141929,13.518451,1923.3,1922.6,1.887]
[1688257142220,5.719361,1923.3,1922.7,1.895]
[1688257142512,10.918781,1923.3,1922.8,5.20061]
[1688257142694,10.918781,1923.3,1922.7,4.895]
[1688257142895,13.518471,1923.3,1922.6,5.46875971]
[1688257143227,13.518471,1923.3,1922.7,16.32378597]
[1688257143421,13.518471,1923.3,1922.7,13.32378597]
[1688257143620,12.99853,1923.3,1922.7,13.32378597]
[1688257143786,10.39884,1923.3,1922.7,13.32378597]
[1688257144116,5.19942,1923.3,1922.7,15.92428597]
[1688257144323,1.40509291,1923.8,1923.1,14.89444]
[1688257144625,10.39632,1923.8,1923.3,5.19936]
[1688257144792,5.19816,1923.8,1923.3,5.19936]
[1688257144991,5.19807,1923.8,1923.4,10.87796]
[1688257145919,5.19807,1923.8,1923.4,5.67886]
[1688257146232,5.19708,1924.2,1923.8,5.19791]
[1688257146389,5.19669,1924.3,1923.8,5.19791]
[1688257146587,10.39343,1924.3,1923.8,5.19791]
[1688257146821,6.236403,1924.2,1923.8,5.19791]
[1688257147228,0.12903963,1924.6,1924.0,5.19742]
[1688257147229,5.19628,1924.5,1924.0,5.19742]
[1688257147529,5.19628,1924.5,1924.0,7.09242]
[1688257147709,5.19647,1924.4,1924.0,12.28984]
[1688257148234,0.41783119,1924.7,1924.1,2.375]
[1688257148235,5.61366119,1924.7,1924.1,2.375]
[1688257148539,6.47728012,1924.7,1924.2,14.87886]
[1688257148832,6.47728012,1924.7,1924.2,5.19674]
[1688257149009,11.67289012,1924.7,1924.2,5.19674]
[1688257149206,11.67289012,1924.7,1924.2,10.3937]
[1688257149545,11.67289012,1924.7,1923.6,5.19849]
[1688257149546,5.19709,1924.2,1923.6,5.19849]
[1688257149708,5.19709,1924.2,1923.6,11.436789]
[1688257149709,10.39415,1924.2,1923.6,11.436789]
[1688257149910,10.39415,1924.2,1923.6,15.920079]
[1688257150154,12.99263,1924.2,1923.6,13.320789]
[1688257150439,13.00917914,1924.2,1923.6,10.39707]
[1688257150763,13.00917914,1924.2,1923.7,10.87646]
[1688257150960,5.21360914,1924.2,1923.7,10.87646]
[1688257151238,5.21360914,1924.2,1923.8,8.19798]
[1688257151239,10.39402,1924.2,1923.8,8.19798]
[1688257151411,12.9925,1924.2,1923.8,3.0]
[1688257151608,11.69492491,1924.2,1923.7,8.67816]
[1688257151814,6.49786491,1924.2,1923.7,13.87632]
[1688257152221,6.49786491,1924.2,1923.7,13.8738622]
[1688257153021,6.49786491,1924.2,1923.7,16.4730122]
[1688257153329,11.69482491,1924.2,1923.7,16.4730122]
[1688257153538,6.49786491,1924.2,1923.7,16.4730122]
[1688257157382,1.30090491,1924.2,1923.7,16.4880122]
[1688257159158,11.69486491,1924.2,1923.7,3.4925422]
[1688257159482,1.16948649,1924.1,1923.7,0.4925422]
[1688257159683,10.39409,1924.2,1923.7,10.8891522]
[1688257159977,10.39411,1924.2,1923.7,5.6908422]
[1688257161653,12.99259,1924.2,1923.7,5.6908422]
[1688257161953,12.99259,1924.2,1923.7,10.8891522]
[1688257162170,12.99259,1924.2,1923.7,5.6908422]
[1688257162398,1.299259,1924.1,1923.7,5.6908422]
[1688257162696,6.496679,1924.1,1923.7,5.6908422]
[1688257162904,11.694099,1924.1,1923.7,5.6908422]
[1688257163422,11.694099,1924.1,1923.7,0.4925422]
[1688257164081,5.19704,1924.2,1923.7,10.8891422]
[1688257164398,12.99258,1924.2,1923.7,10.8891422]
[1688257167072,12.99258,1924.2,1923.7,0.4925422]
[1688257167704,12.99258,1924.2,1923.7,5.6908322]
[1688257167907,1.299258,1924.1,1923.7,5.6908322]
[1688257168208,5.19755,1924.0,1923.7,5.6908322]
[1688257171638,5.19755,1924.0,1923.7,0.4925422]
[1688257172208,5.19755,1924.0,1923.7,5.6908422]
[1688257173216,5.19755,1924.0,1923.7,0.4925422]
[1688257176352,10.3951,1924.0,1923.7,0.4925422]
[1688257176848,5.19755,1924.0,1923.7,0.4925422]
[1688257177758,5.19755,1924.0,1923.7,5.6908422]
[1688257180955,5.19755,1924.0,1923.7,10.8891522]
[1688257181163,5.19755,1924.0,1923.7,5.6908422]
[1688257183854,5.19755,1924.0,1923.7,10.8891522]
[1688257184842,5.19755,1924.0,1923.7,5.6908422]
[1688257186359,5.19755,1924.0,1923.7,10.8891522]
[1688257187055,5.19755,1924.0,1923.7,0.4925422]
[1688257187257,10.914805,1924.0,1923.7,0.4925422]
[1688257187429,5.717255,1924.0,1923.7,0.4925422]
[1688257187866,5.717255,1924.0,1923.7,5.6907522]
[1688257188052,5.1975,1924.0,1923.7,5.6907522]
[1688257191069,5.1975,1924.0,1923.7,10.8890622]
[1688257192941,5.1975,1924.0,1923.7,5.6907522]
[1688257193775,5.1975,1924.0,1923.7,10.8890622]
[1688257195134,12.50225,1924.2,1923.7,13.4882122]
[1688257196258,14.01396491,1924.2,1923.7,13.4882122]
[1688257198982,16.61244491,1924.2,1923.7,5.6907522]
[1688257200183,16.61244491,1924.2,1923.7,10.8890622]
[1688257203676,16.61244491,1924.2,1923.7,13.4890622]
[1688257203995,16.61244491,1924.2,1923.7,8.2907522]
[1688257204964,16.61244491,1924.2,1923.7,13.4890622]
[1688257205155,16.61244491,1924.2,1923.7,8.2907522]
[1688257205356,16.61244491,1924.2,1923.7,13.4890622]
[1688257205776,16.61244491,1924.2,1923.7,8.2907522]
[1688257207673,16.61244491,1924.2,1923.7,13.4890622]
[1688257207880,16.61244491,1924.2,1923.7,15.40362776]
[1688257208077,16.61244491,1924.2,1923.7,10.20531776]
[1688257208257,16.61244491,1924.2,1923.7,8.2907522]
[1688257208712,16.61244491,1924.2,1923.7,13.4890622]
[1688257209193,16.61244491,1924.2,1923.7,8.2907522]
[1688257212097,16.61244491,1924.2,1923.7,3.0925422]
[1688257212782,16.61244491,1924.2,1923.7,8.2908422]
[1688257215907,1.66124449,1924.1,1923.7,8.2908422]
[1688257216106,5.19753,1924.0,1923.7,8.2908422]
[1688257217713,5.19753,1924.0,1923.7,13.4891522]
[1688257218910,5.19753,1924.0,1923.7,3.0925422]
[1688257219096,5.19753,1924.0,1923.7,8.2908522]
[1688257220114,10.3947,1924.1,1923.7,13.4891622]
[1688257220296,10.3947,1924.1,1923.7,15.30744842]
[1688257229794,10.3947,1924.1,1923.7,13.4891622]
[1688257235246,12.99331,1924.1,1923.7,2.615]
[1688257254257,2.68752184,1924.0,1923.7,2.615]
[1688257254621,15.5933,1923.9,1923.7,2.615]
[1688257254821,14.55443,1923.8,1923.7,2.615]
[1688257255222,18.59395184,1923.8,1923.7,2.615]
[1688257256325,19.09395184,1923.8,1923.7,2.615]
[1688257258288,19.11050098,1923.8,1923.7,2.615]
[1688257259677,19.11050098,1923.8,1922.9,1.6011]
[1688257259922,1.349,1923.5,1922.9,1.6011]
[1688257260214,12.99835,1923.4,1922.9,1.6011]
[1688257260383,12.99835,1923.4,1922.9,8.15356]
[1688257260584,12.99835,1923.4,1922.9,13.35403]
[1688257260798,15.03355,1923.4,1922.9,13.35403]
[1688257261321,15.03355,1923.4,1922.9,8.15356]
[1688257261815,17.06560218,1923.4,1922.9,8.15356]
[1688257262165,17.06560218,1923.4,1922.9,13.35403]
[1688257262362,15.03355,1923.4,1922.9,13.35403]
[1688257266040,15.03355,1923.4,1922.9,8.15356]
[1688257266182,15.03355,1923.4,1922.9,6.80156]
[1688257268721,15.03355,1923.4,1922.9,8.14456]
[1688257268897,15.03355,1923.4,1922.9,2.9441]
[1688257269304,15.03355,1923.4,1922.9,5.5441]
[1688257270400,15.03355,1923.4,1922.9,7.338184]
[1688257271425,15.03355,1923.4,1922.9,5.5441]
[1688257272593,15.03355,1923.4,1922.9,10.74455]
[1688257273831,15.03355,1923.4,1922.9,5.5441]
[1688257275998,15.03355,1923.4,1922.9,10.74457]
[1688257277008,15.03355,1923.4,1922.9,5.5441]
[1688257277209,1.503355,1923.3,1922.9,5.5441]
[1688257277411,10.39944,1923.2,1922.9,5.5441]
[1688257277596,10.39944,1923.2,1922.9,3.943]
[1688257278625,10.39944,1923.2,1922.9,9.14339]
[1688257279039,10.39944,1923.2,1922.9,3.943]
[1688257280336,12.99927,1923.2,1922.9,2.6]
[1688257280550,1.039944,1923.1,1922.9,2.6]
[1688257280844,10.4004,1923.0,1922.9,2.6]
[1688257281925,5.2002,1923.0,1922.9,2.6]
[1688257282513,10.40016,1923.1,1922.9,2.6]
[1688257283222,13.00012,1923.1,1922.9,2.6]
[1688257286148,5.20006,1923.1,1922.9,2.6]
[1688257286298,5.19968,1923.2,1922.9,7.80044]
[1688257286812,5.19968,1923.2,1922.9,14.35291]
[1688257287112,10.39936,1923.2,1922.9,14.35291]
[1688257287522,10.39936,1923.2,1922.9,9.15244]
[1688257290034,5.19896,1923.5,1923.0,1.345]
[1688257290207,0.5,1923.6,1923.0,1.345]
[1688257290208,5.19922,1923.4,1923.1,11.74263]
[1688257290408,10.39852,1923.4,1923.1,6.54272]
[1688257290612,10.39852,1923.4,1923.0,13.26818]
[1688257291023,10.39852,1923.4,1923.0,8.06808]
[1688257291024,12.99808,1923.4,1923.0,8.06808]
[1688257291817,12.99808,1923.4,1923.0,2.868]
[1688257292317,12.99808,1923.4,1923.0,8.06816]
[1688257293539,12.99808,1923.4,1923.0,2.868]
[1688257293850,16.98540984,1923.4,1922.9,9.1463]
[1688257294433,16.98540984,1923.4,1922.9,3.946]
[1688257297840,16.98540984,1923.4,1922.9,9.14643]
[1688257298378,16.98540984,1923.4,1923.0,1.346]
[1688257298379,5.19922,1923.4,1923.0,1.346]
[1688257298510,5.19922,1923.4,1923.1,11.75176]
[1688257298816,10.39844,1923.4,1923.1,6.55188]
[1688257299001,10.39844,1923.4,1923.1,5.19988]
[1688257302517,12.998,1923.4,1923.1,5.19988]
[1688257304912,10.39844,1923.4,1923.1,5.19988]
[1688257306024,10.39844,1923.4,1923.0,6.55198]
[1688257306225,14.29779,1923.4,1922.9,4.0115]
[1688257306521,16.98531184,1923.4,1922.9,2.6]
[1688257306730,1.69853118,1923.3,1922.9,2.6]
[1688257307049,12.9993,1923.2,1922.9,2.6]
[1688257307250,15.68682184,1923.2,1922.9,2.6]
[1688257307613,0.5,1923.1,1922.9,2.6]
[1688257307808,24.83732184,1923.0,1922.9,2.6]
[1688257308046,31.72305402,1923.0,1922.9,2.6]
[1688257308215,0.5,1922.8,1922.0,1.6079]
[1688257308411,15.60416,1922.6,1922.0,1.6079]
[1688257309470,15.60416,1922.6,1922.0,1.8539]
[1688257309471,22.15755,1922.6,1922.0,1.8539]
[1688257309759,15.60584,1922.4,1921.9,0.002]
[1688257310330,13.02140914,1922.4,1921.9,0.002]
[1688257310528,13.02140914,1922.4,1921.9,10.40834]
[1688257310770,10.40392,1922.4,1922.0,1.344]
[1688257310979,10.40392,1922.4,1922.0,6.54679]
[1688257311336,13.00483,1922.4,1922.0,5.20279]
[1688257311538,13.00483,1922.4,1922.0,2.6]
[1688257311539,14.305313,1922.4,1922.0,2.6]
[1688257311757,16.99283484,1922.4,1922.0,2.6]
[1688257311930,18.34483484,1922.4,1922.0,2.6]
[1688257312395,0.01654914,1922.3,1922.0,2.6]
[1688257312538,13.00592,1922.2,1922.0,2.6]
[1688257313137,14.30816691,1922.2,1921.9,0.002]
[1688257318365,5.20237,1922.2,1921.9,0.002]
[1688257318676,5.20198,1922.4,1922.0,1.352]
[1688257318836,10.40424,1922.3,1922.0,6.55479]
[1688257319557,32.98058,1922.7,1922.0,11.7577]
[1688257319744,1.6488,1922.8,1922.1,0.48]
[1688257319945,5.20086,1922.8,1922.5,1.343]
[1688257320167,5.20086,1922.8,1922.3,13.00484]
[1688257320168,10.40171,1922.8,1922.3,13.00484]
[1688257320338,10.40171,1922.8,1922.5,5.2015]
[1688257320537,10.40171,1922.8,1922.5,10.40306]
[1688257320737,10.40171,1922.8,1922.2,1.658]
[1688257320738,5.20085,1922.8,1922.2,1.658]
[1688257320972,13.00207,1922.8,1922.2,3.01]
[1688257321268,13.00207,1922.8,1922.1,10.03447]
[1688257321269,17.04159184,1922.8,1922.1,10.03447]
[1688257321470,17.65378002,1922.8,1922.1,14.75711]
[1688257321641,17.65378002,1922.8,1922.1,16.00643]
[1688257322039,13.00395,1922.5,1922.0,3.7709]
[1688257322275,13.00395,1922.5,1922.0,8.6678]
[1688257322664,13.00395,1922.5,1922.0,13.87071]
[1688257322851,13.00395,1922.5,1922.0,5.45430641]
[1688257323054,5.20158,1922.5,1922.0,13.87064]
[1688257323838,5.20158,1922.5,1922.0,2.1129]
[1688257323839,13.02046914,1922.5,1922.0,2.1129]
[1688257324039,14.36946914,1922.5,1921.9,0.002]
[1688257324263,2.68752184,1922.4,1921.9,0.002]
[1688257324549,13.00557,1922.3,1921.9,0.002]
[1688257324758,13.0066,1922.1,1921.9,0.002]
[1688257324938,2.68752184,1922.0,1921.9,0.002]
[1688257325175,17.04379184,1922.0,1921.9,0.002]
[1688257325340,17.56034098,1922.0,1921.9,0.002]
[1688257325541,20.56034098,1922.0,1921.9,0.002]
[1688257325738,24.43731108,1922.0,1921.9,0.002]
[1688257325986,24.64565108,1922.0,1921.9,0.002]
[1688257327863,24.12910194,1922.0,1921.9,0.002]
[1688257328188,10.61416,1922.0,1921.9,0.002]
[1688257328395,5.20291,1922.0,1921.9,0.002]
[1688257328693,10.40582,1922.0,1921.9,0.002]
[1688257329245,39.29801152,1922.6,1921.9,0.002]
[1688257329246,5.20242,1922.2,1921.9,0.002]
[1688257329495,3.95286,1922.5,1921.9,5.20518]
[1688257329496,5.20201,1922.4,1921.9,5.20518]
[1688257329644,5.20174,1922.5,1922.2,5.20234]
[1688257329845,5.20174,1922.5,1922.2,13.00589]
[1688257330086,5.20162,1922.5,1922.1,5.20246]
[1688257330301,5.20162,1922.5,1921.9,5.20504]
[1688257330302,15.69154184,1922.5,1921.9,5.20504]
[1688257330503,4.25667602,1922.4,1921.9,0.002]
[1688257330792,13.00552,1922.3,1921.9,5.20508]
[1688257331917,13.00552,1922.3,1921.9,10.40826]
[1688257332687,13.00552,1922.3,1921.9,5.20508]
[1688257332886,13.00552,1922.3,1921.9,0.002]
[1688257333112,5.20264,1922.1,1921.9,0.002]
[1688257333820,13.0066,1922.1,1921.9,0.002]
[1688257335491,15.69412184,1922.1,1921.9,0.002]
[1688257336284,4.59307098,1922.0,1921.9,0.002]
[1688257336525,17.60034098,1922.0,1921.9,0.002]
[1688257336819,20.14077108,1922.0,1921.9,0.002]
[1688257336987,15.65032108,1922.0,1921.9,0.002]
[1688257337187,18.25177108,1922.0,1921.9,0.002]
[1688257339035,20.14077108,1922.0,1921.9,0.002]
[1688257339634,12.9462501,1922.0,1921.9,0.002]
[1688257339805,2.60135,1922.1,1921.9,0.002]
[1688257339806,5.20275,1922.1,1921.9,0.002]
[1688257340000,5.20291,1922.0,1921.9,0.002]
[1688257340539,7.89027184,1922.1,1921.9,0.002]
[1688257340540,5.20275,1922.1,1921.9,0.002]
[1688257340728,10.40552,1922.1,1921.9,0.002]
[1688257340932,5.20275,1922.1,1921.9,0.002]
[1688257341231,5.20266,1922.1,1921.9,0.002]
[1688257344038,10.40532,1922.1,1921.9,0.002]
[1688257344342,11.705971,1922.1,1921.9,0.002]
[1688257344842,14.307291,1922.1,1921.9,0.002]
[1688257345226,5.21913914,1922.2,1921.9,0.002]
[1688257345429,5.20219,1922.3,1921.9,5.20518]
[1688257345738,5.20239,1922.2,1921.9,5.20518]
[1688257347561,5.20218,1922.3,1921.9,10.40836]
[1688257347766,10.40433,1922.3,1921.9,11.709366]
[1688257347938,10.40433,1922.3,1921.9,10.40836]
[1688257349062,10.40433,1922.3,1921.9,5.20518]
[1688257349234,15.69290184,1922.3,1921.9,0.002]
[1688257349932,15.69290184,1922.3,1921.9,5.20514]
[1688257350765,15.69290184,1922.3,1921.9,0.002]
[1688257350940,15.69290184,1922.3,1921.9,5.20517]
[1688257351284,17.52228902,1922.3,1921.9,5.20517]
[1688257351844,17.52228902,1922.3,1921.9,0.002]
[1688257352702,2.68752184,1922.2,1921.9,0.002]
[1688257352964,20.81056,1922.1,1921.9,0.002]
[1688257353167,3.18752184,1922.2,1921.9,0.002]
[1688257353168,2.68752184,1922.0,1921.9,0.002]
[1688257353536,7.89043184,1922.0,1921.9,0.002]
[1688257354464,13.09334184,1922.0,1921.9,0.002]
[1688257354980,15.69479184,1922.0,1921.9,0.002]
[1688257355534,17.59079184,1922.0,1921.9,0.002]
[1688257355745,20.17869538,1922.0,1921.9,0.002]
[1688257356366,18.28269538,1922.0,1921.9,0.002]
[1688257356878,20.66869538,1922.0,1921.9,0.002]
[1688257360694,18.76614624,1922.0,1921.9,0.002]
[1688257362367,18.26614624,1922.0,1921.9,0.002]
[1688257364764,0.31875218,1922.1,1921.9,0.002]
[1688257364765,5.52147218,1922.1,1921.9,0.002]
[1688257365057,15.69447184,1922.1,1921.9,0.002]
[1688257367768,10.40563,1922.1,1921.9,0.002]
[1688257367966,13.00695,1922.1,1921.9,0.002]
[1688257380812,15.69447184,1922.1,1921.9,0.002]
[1688257381021,1.56944718,1922.0,1921.9,0.002]
[1688257381233,17.26423902,1922.0,1921.9,0.002]
[1688257383338,9.45987902,1922.0,1921.9,0.002]
[1688257383496,7.89043184,1922.0,1921.9,0.002]
[1688257383701,2.68752184,1922.0,1921.9,0.002]
[1688257383918,5.20278,1922.1,1921.9,0.002]
[1688257384104,5.20291,1922.0,1921.9,0.002]
[1688257384609,10.40582,1922.0,1921.9,0.002]
[1688257384814,17.26425802,1922.0,1921.9,0.002]
[1688257386445,17.28080716,1922.0,1921.9,0.002]
[1688257392411,14.67935716,1922.0,1921.9,0.002]
[1688257392610,17.28080716,1922.0,1921.9,0.002]
[1688257396136,13.10989098,1922.0,1921.9,0.002]
[1688257396444,0.41971934,1922.1,1921.9,0.002]
[1688257396620,13.51257118,1922.1,1921.9,0.002]
[1688257396941,13.09285184,1922.1,1921.9,0.002]
[1688257397140,15.69417184,1922.1,1921.9,0.002]
[1688257397909,17.26358902,1922.1,1921.9,0.002]
[1688257398110,2.68752184,1922.0,1921.9,0.002]
[1688257398311,15.69479184,1922.0,1921.9,0.002]
[1688257401949,15.71134098,1922.0,1921.9,0.002]
[1688257408848,17.05534098,1922.0,1921.9,0.002]
[1688257409035,19.1779538,1922.0,1921.9,0.002]
[1688257414470,17.8339538,1922.0,1921.9,0.002]
[1688257417858,18.24786063,1922.0,1921.9,0.002]
[1688257445802,18.72786063,1922.0,1921.9,0.002]
[1688257452340,21.72786063,1922.0,1921.9,0.002]
[1688257454745,21.72786063,1922.0,1921.7,0.1]
[1688257454746,0.5,1921.8,1921.7,0.1]
[1688257455065,24.48131184,1921.8,1921.7,0.1]
[1688257455212,27.48131184,1921.8,1921.7,0.1]
[1688257456059,27.68970884,1921.8,1921.7,0.1]
[1688257456857,29.04470884,1921.8,1921.7,0.1]
[1688257457018,30.82834843,1921.8,1921.7,0.1]
[1688257458224,0.5,1921.5,1921.4,0.1026293]
[1688257458430,24.50111098,1921.5,1921.4,0.1026293]
[1688257458761,27.50111098,1921.5,1921.4,0.1026293]
[1688257458976,27.50111098,1921.5,1921.3,0.1]
[1688257459173,20.74825902,1921.4,1921.3,0.1]
[1688257459321,22.10325902,1921.4,1921.3,0.1]
[1688257459871,22.10325902,1921.4,1921.0,0.1]
[1688257459872,0.5,1921.1,1921.0,0.1]
[1688257460029,0.5,1921.1,1920.7,0.1]
[1688257460030,19.20089184,1921.1,1920.7,0.1]
[1688257460234,3.16752184,1921.0,1920.7,0.1]
[1688257460456,22.52121016,1921.0,1920.7,0.1]
[1688257460728,22.52121016,1921.0,1920.9,0.05]
[1688257461152,20.68621016,1921.0,1920.9,0.05]
[1688257467270,18.70157184,1921.0,1920.9,0.05]
[1688257472184,15.70157184,1921.0,1920.9,0.05]
[1688257472346,18.70157184,1921.0,1920.9,0.05]
[1688257473984,15.70157184,1921.0,1920.9,0.05]
[1688257474186,15.70157184,1921.0,1920.9,1.401]
[1688257474392,13.01405,1921.0,1920.9,1.401]
[1688257474891,13.01405,1921.0,1920.9,0.05]
[1688257479364,13.01405,1921.0,1920.9,1.403]
[1688257479861,15.70157184,1921.0,1920.9,0.05]
[1688257486684,16.11185276,1921.0,1920.9,0.05]
[1688257487217,16.11185276,1921.0,1920.9,1.405]
[1688257489223,13.42433092,1921.0,1920.9,1.405]
[1688257489423,13.41862162,1921.0,1920.9,1.405]
[1688257491928,5.20562,1921.0,1920.9,1.405]
[1688257492207,5.20562,1921.0,1920.9,2.066115]
[1688257492617,5.20554,1921.1,1920.9,2.066115]
[1688257492839,5.20554,1921.1,1920.9,0.711115]
[1688257493194,10.41108,1921.1,1920.9,0.711115]
[1688257494019,5.20554,1921.1,1920.9,0.711115]
[1688257494222,5.2054,1921.1,1920.9,0.711115]
[1688257494751,5.20549,1921.1,1920.9,0.711115]
[1688257495330,10.41098,1921.1,1920.9,0.711115]
[1688257496232,10.41098,1921.1,1921.0,1.344]
[1688257496402,10.41042,1921.2,1921.0,1.344]
[1688257496604,5.2052,1921.2,1921.1,1.355]
[1688257496866,10.41042,1921.2,1921.1,1.355]
[1688257497012,5.2052,1921.2,1921.1,1.355]
[1688257497340,10.41042,1921.2,1921.1,2.011061]
[1688257498740,5.2052,1921.2,1921.1,2.011061]
[1688257499222,0.42053942,1921.3,1921.1,2.011061]
[1688257499321,3.0,1921.7,1921.2,11.76516]
[1688257499322,5.20439,1921.5,1921.2,11.76516]
[1688257499545,5.20411,1921.6,1921.2,11.76516]
[1688257499704,5.20439,1921.5,1921.2,11.76516]
[1688257500837,3.01917205,1921.7,1921.2,14.3677]
[1688257500838,0.41728205,1921.7,1921.2,14.3677]
[1688257501010,6.74847,1922.0,1921.6,1.355]
[1688257501011,5.20329,1921.9,1921.6,1.355]
[1688257501211,5.20329,1921.9,1921.8,1.355]
[1688257501409,5.20329,1921.9,1921.6,1.355]
[1688257501410,13.09410184,1921.9,1921.6,1.355]
[1688257501612,13.0096,1921.7,1921.3,1.502]
[1688257502732,10.40772,1921.7,1921.3,1.502]
[1688257503047,10.40772,1921.7,1921.3,8.120864]
[1688257503266,10.40772,1921.7,1921.3,13.325664]
[1688257503408,2.68752184,1921.6,1921.3,5.2048]
[1688257503743,10.40852,1921.5,1921.2,8.78862]
[1688257503950,2.68752184,1921.5,1921.2,7.43362]
[1688257504144,10.4083,1921.6,1921.2,7.43362]
[1688257504446,10.4083,1921.6,1921.4,1.351]
[1688257504447,2.68752184,1921.6,1921.4,1.351]
[1688257504664,5.2038,1921.7,1921.4,1.351]
[1688257504843,5.2038,1921.7,1921.5,1.355]
[1688257504844,5.2042,1921.6,1921.5,1.355]
[1688257505141,10.40783,1921.7,1921.5,1.355]
[1688257505322,10.40783,1921.7,1921.6,1.353]
[1688257507041,13.09535184,1921.7,1921.6,1.353]
[1688257507265,13.09535184,1921.7,1921.2,10.4171]
[1688257507266,17.26693202,1921.7,1921.5,1.351]
[1688257507553,2.68752184,1921.6,1921.5,1.351]
[1688257507845,7.89151184,1921.6,1921.4,1.355]
[1688257508255,7.89151184,1921.6,1921.3,1.344]
[1688257508256,15.69749184,1921.6,1921.3,1.344]
[1688257508470,0.78915118,1921.5,1921.2,3.5806]
[1688257508770,5.20447,1921.5,1921.2,3.5806]
[1688257508951,10.40894,1921.5,1921.2,3.5806]
[1688257509449,10.40894,1921.5,1921.2,2.2286]
[1688257513040,5.20409,1921.6,1921.2,8.78865]
[1688257513214,5.20409,1921.6,1921.4,1.353]
[1688257513415,10.40834,1921.6,1921.4,1.353]
[1688257514140,10.40834,1921.6,1921.3,1.355]
[1688257517223,10.40834,1921.6,1921.3,6.5598]
[1688257517435,10.40834,1921.6,1921.3,1.355]
[1688257518031,10.40834,1921.6,1921.3,6.55978]
[1688257518874,1.5817,1921.8,1921.3,11.80891]
[1688257519070,5.61330951,1922.0,1921.7,1.355]
[1688257519242,10.40664,1921.9,1921.7,1.355]
[1688257520466,13.00823,1921.9,1921.7,1.355]
[1688257520821,5.20301,1922.0,1921.7,11.063324]
[1688257521250,5.20323,1921.9,1921.7,11.063324]
[1688257521479,13.09398184,1921.9,1921.5,2.2579]
[1688257521624,15.69557184,1921.9,1921.5,2.2579]
[1688257521826,15.69557184,1921.9,1921.6,1.355]
[1688257522165,13.09398184,1921.9,1921.6,1.355]
[1688257522368,7.89075184,1921.9,1921.7,1.352]
[1688257522831,5.20323,1921.9,1921.7,6.55569]
[1688257523562,5.20323,1921.9,1921.7,5.20369]
[1688257524333,2.68752184,1921.8,1921.5,2.2579]
[1688257524571,5.20372,1921.7,1921.5,2.2579]
[1688257524747,5.20372,1921.7,1921.4,5.20451]
[1688257525365,10.42321914,1921.9,1921.4,11.76204]
[1688257525563,2.60149,1922.0,1921.4,14.3643]
[1688257525564,10.40613,1922.0,1921.4,14.3643]
[1688257525864,7.89053184,1922.0,1921.6,5.20389]
[1688257526068,13.09353184,1922.0,1921.6,5.20389]
[1688257526652,13.09353184,1922.0,1921.6,7.34339]
[1688257529471,13.09353184,1922.0,1921.6,2.1395]
[1688257530962,15.69498184,1922.0,1921.6,2.1395]
[1688257531166,7.27103308,1922.1,1921.6,8.69847]
[1688257531353,7.27103308,1922.1,1921.6,13.90246]
[1688257531354,15.16144492,1922.1,1921.6,13.90246]
[1688257533336,19.71724433,1922.1,1921.6,13.90246]
[1688257533666,22.31856433,1922.1,1921.6,13.90246]
[1688257535153,22.31856433,1922.1,1921.6,8.69847]
[1688257536085,22.31856433,1922.1,1921.6,6.55897]
[1688257536286,5.68752184,1922.0,1921.0,8.20549]
[1688257536500,13.0093,1921.7,1921.2,2.2773]
[1688257536705,2.68752184,1921.6,1921.2,2.2773]
[1688257537004,13.0108,1921.5,1921.0,1.88116112]
[1688257537494,10.40864,1921.5,1921.1,6.56028]
[1688257537856,10.40864,1921.5,1921.1,8.83758]
[1688257538769,13.01077,1921.5,1921.1,8.83758]
[1688257538972,5.20432,1921.5,1921.2,1.344]
[1688257539177,6.82625,1921.6,1921.3,1.352]
[1688257539383,10.40866,1921.5,1921.3,1.352]
[1688257541491,13.01079,1921.5,1921.1,2.2773]
[1688257544799,16.55911165,1921.5,1921.1,2.2773]
[1688257545002,2.68752184,1921.4,1920.9,0.05]
[1688257545189,13.01235,1921.3,1920.9,0.05]
[1688257545396,15.69987184,1921.3,1920.9,0.05]
[1688257546267,15.69987184,1921.3,1920.9,10.46175]
[1688257546489,15.69987184,1921.3,1920.9,5.25586]
[1688257547006,15.69987184,1921.3,1920.9,0.05]
[1688257548480,15.69987184,1921.3,1920.9,5.25585]
[1688257550772,5.20494,1921.3,1921.0,1.352]
[1688257550976,5.20494,1921.3,1921.0,6.5576]
[1688257550977,10.40988,1921.3,1921.0,6.5576]
[1688257553689,5.20494,1921.3,1921.1,1.353]
[1688257554009,5.20494,1921.3,1921.1,2.00886]
[1688257554307,10.40974,1921.3,1921.1,2.00886]
[1688257555520,5.2048,1921.3,1921.1,12.41954]
[1688257555825,5.20476,1921.4,1921.1,12.41954]
[1688257556035,5.20476,1921.4,1921.2,1.241954]
[1688257557298,10.40939,1921.4,1921.2,1.241954]
[1688257557592,10.40882,1921.5,1921.2,7.802004]
[1688257557817,10.40882,1921.5,1921.2,13.007084]
[1688257559715,13.01095,1921.5,1921.2,7.802004]
[1688257559889,13.01095,1921.5,1921.2,1.355]
[1688257560424,13.01095,1921.5,1921.2,6.56005]
[1688257561302,13.01095,1921.5,1921.1,4.11566]
[1688257561689,13.01095,1921.5,1921.1,9.32098]
[1688257562194,13.01095,1921.5,1921.3,1.355]
[1688257562195,5.20437,1921.5,1921.3,1.355]
[1688257562396,10.40882,1921.5,1921.3,1.355]